[Event "*** Titled Tuesday Blitz"]
[Site "Chess.com"]
[Date "2020.01.07"]
[Round "5"]
[White "gmasterkiller"]
[Black "hansen"]
[Result "0-1"]
[WhiteElo "2597"]
[BlackElo "2867"]
[TimeControl "180+2"]
[EndTime "14:11:19 PST"]
[Termination "hansen won on time"]

1. e4 {[%clk 0:03:01.9]} 1... c6 {[%clk 0:02:59.8]} 2. d4 {[%clk 0:03:02.1]}
2... d5 {[%clk 0:03:01.4]} 3. e5 {[%clk 0:03:03.7]} 3... Bf5 {[%clk 0:03:02.1]}
4. Nf3 {[%clk 0:03:04.9]} 4... e6 {[%clk 0:03:03.3]} 5. Be2 {[%clk 0:03:06.6]}
5... Nd7 {[%clk 0:03:02.7]} 6. O-O {[%clk 0:03:08]} 6... Ne7 {[%clk 0:03:03.1]}
7. b3 {[%clk 0:03:08.8]} 7... h6 {[%clk 0:03:02.3]} 8. c4 {[%clk 0:03:10]} 8...
g5 {[%clk 0:03:02.9]} 9. Nc3 {[%clk 0:03:10.1]} 9... Ng6 {[%clk 0:03:03]} 10.
Bd3 {[%clk 0:03:07.6]} 10... Bxd3 {[%clk 0:03:02]} 11. Qxd3 {[%clk 0:03:08.7]}
11... Bb4 {[%clk 0:03:02.5]} 12. cxd5 {[%clk 0:03:02.6]} 12... cxd5 {[%clk
0:02:59.1]} 13. Nxd5 {[%clk 0:03:03.8]} 13... exd5 {[%clk 0:02:50.3]} 14. e6
{[%clk 0:03:04.4]} 14... O-O {[%clk 0:02:51.9]} 15. exd7 {[%clk 0:02:49.6]}
15... Qxd7 {[%clk 0:02:53.8]} 16. h4 {[%clk 0:02:43.5]} 16... gxh4 {[%clk
0:02:43.9]} 17. Bxh6 {[%clk 0:02:39.2]} 17... Rfe8 {[%clk 0:02:45.5]} 18. a3
{[%clk 0:02:32.1]} 18... Bd6 {[%clk 0:02:46.5]} 19. Rfe1 {[%clk 0:02:26.4]}
19... Qg4 {[%clk 0:02:45.3]} 20. Rxe8+ {[%clk 0:02:01.6]} 20... Rxe8 {[%clk
0:02:44.9]} 21. Re1 {[%clk 0:02:01.7]} 21... Re4 {[%clk 0:02:42.3]} 22. Kh1
{[%clk 0:00:20]} 22... Qxf3 {[%clk 0:02:11]} 23. gxf3 {[%clk 0:00:17.8]} 23...
Rxe1+ {[%clk 0:02:12.5]} 24. Kg2 {[%clk 0:00:19.3]} 24... h3+ {[%clk 0:02:05.1]}
25. Kxh3 {[%clk 0:00:18.7]} 25... Rh1+ {[%clk 0:02:06.6]} 26. Kg2 {[%clk
0:00:18.4]} 26... Rxh6 {[%clk 0:02:08.2]} 27. Qb5 {[%clk 0:00:13.7]} 27... Bxa3
{[%clk 0:01:02.4]} 28. Qxb7 {[%clk 0:00:13.7]} 28... Nf4+ {[%clk 0:00:55.7]} 29.
Kg1 {[%clk 0:00:08.4]} 29... Rg6+ {[%clk 0:00:52.1]} 30. Kf1 {[%clk 0:00:09.1]}
30... Rb6 {[%clk 0:00:52.1]} 31. Qc8+ {[%clk 0:00:09.5]} 31... Kg7 {[%clk
0:00:52.6]} 32. Qg4+ {[%clk 0:00:10.4]} 32... Ng6 {[%clk 0:00:53.5]} 33. Qf5
{[%clk 0:00:11.4]} 33... Rxb3 {[%clk 0:00:52.6]} 34. Qc2 {[%clk 0:00:11]} 34...
Rb2 {[%clk 0:00:48.9]} 35. Qc3 {[%clk 0:00:12.2]} 35... Rb1+ {[%clk 0:00:48.2]}
36. Kg2 {[%clk 0:00:12.6]} 36... Nf4+ {[%clk 0:00:49.2]} 37. Kh2 {[%clk
0:00:13.9]} 37... Bd6 {[%clk 0:00:48.7]} 38. Qc6 {[%clk 0:00:14.5]} 38... Rb6
{[%clk 0:00:48.7]} 39. Qd7 {[%clk 0:00:14.5]} 39... a5 {[%clk 0:00:43.1]} 40.
Qa7 {[%clk 0:00:15.7]} 40... Ng6+ {[%clk 0:00:33.4]} 41. Kh3 {[%clk 0:00:16]}
41... Rb3 {[%clk 0:00:32.8]} 42. Qxa5 {[%clk 0:00:13.8]} 42... Rxf3+ {[%clk
0:00:33.7]} 43. Kg2 {[%clk 0:00:13.1]} 43... Rf5 {[%clk 0:00:34.7]} 44. Qa6
{[%clk 0:00:12.8]} 44... Be7 {[%clk 0:00:35.3]} 45. f3 {[%clk 0:00:13.5]} 45...
Bf6 {[%clk 0:00:36.5]} 46. Qa7 {[%clk 0:00:13.9]} 46... Nf4+ {[%clk 0:00:36.5]}
47. Kf2 {[%clk 0:00:15.1]} 47... Ne6 {[%clk 0:00:37.8]} 48. Qb7 {[%clk
0:00:15.9]} 48... Bxd4+ {[%clk 0:00:37.9]} 49. Ke2 {[%clk 0:00:17.5]} 49... Bf6
{[%clk 0:00:38.5]} 50. Qc8 {[%clk 0:00:17.8]} 50... Nd4+ {[%clk 0:00:39]} 51.
Ke3 {[%clk 0:00:17.8]} 51... Rxf3+ {[%clk 0:00:40]} 52. Kd2 {[%clk 0:00:19.2]}
52... Rg3 {[%clk 0:00:40.7]} 53. Qd7 {[%clk 0:00:18.5]} 53... Rg5 {[%clk
0:00:42.6]} 54. Qc8 {[%clk 0:00:18.8]} 54... Ne6 {[%clk 0:00:44]} 55. Kd3 {[%clk
0:00:19.3]} 55... Rg3+ {[%clk 0:00:41.6]} 56. Kd2 {[%clk 0:00:19.8]} 56... d4
{[%clk 0:00:42.5]} 57. Qb8 {[%clk 0:00:20.6]} 57... Bg5+ {[%clk 0:00:42.4]} 58.
Ke2 {[%clk 0:00:21.8]} 58... Bf4 {[%clk 0:00:43.5]} 59. Qb7 {[%clk 0:00:21.9]}
59... d3+ {[%clk 0:00:44.5]} 60. Kf2 {[%clk 0:00:23.3]} 60... d2 {[%clk
0:00:44.5]} 61. Qd5 {[%clk 0:00:23.5]} 61... Rc3 {[%clk 0:00:41.7]} 62. Qg2+
{[%clk 0:00:21.6]} 62... Kf6 {[%clk 0:00:41.1]} 63. Qg4 {[%clk 0:00:20.8]} 63...
Rc1 {[%clk 0:00:40.7]} 64. Qh4+ {[%clk 0:00:22]} 64... Bg5 {[%clk 0:00:39.7]}
65. Qh8+ {[%clk 0:00:22.7]} 65... Ke7 {[%clk 0:00:41.1]} 66. Qb2 {[%clk
0:00:10.3]} 66... d1=Q {[%clk 0:00:40.1]} 67. Qb7+ {[%clk 0:00:12]} 67... Rc7
{[%clk 0:00:39.3]} 68. Qb4+ {[%clk 0:00:13]} 68... Qd6 {[%clk 0:00:40.9]} 69.
Qe4 {[%clk 0:00:13.6]} 69... Rc2+ {[%clk 0:00:41.4]} 70. Qxc2 {[%clk 0:00:14]}
70... Qh2+ {[%clk 0:00:42.3]} 71. Kf3 {[%clk 0:00:14.9]} 71... Qxc2 {[%clk
0:00:43.1]} 72. Kg4 {[%clk 0:00:16.8]} 72... Qe2+ {[%clk 0:00:44]} 0-1

[Event "*** Titled Tuesday Blitz"]
[Site "Chess.com"]
[Date "2020.01.07"]
[Round "5"]
[White "Alopekos"]
[Black "FearNoEvil12"]
[Result "1-0"]
[WhiteElo "2422"]
[BlackElo "2045"]
[TimeControl "180+2"]
[EndTime "14:11:29 PST"]
[Termination "Alopekos won by resignation"]

1. e4 {[%clk 0:03:01.9]} 1... a6 {[%clk 0:03:00.9]} 2. d4 {[%clk 0:03:02.1]}
2... b5 {[%clk 0:03:02.1]} 3. Nf3 {[%clk 0:03:03]} 3... Bb7 {[%clk 0:03:03.4]}
4. Bd3 {[%clk 0:03:04.5]} 4... e6 {[%clk 0:03:04.7]} 5. O-O {[%clk 0:03:05.4]}
5... Nf6 {[%clk 0:03:06.2]} 6. Qe2 {[%clk 0:02:56.1]} 6... d6 {[%clk 0:03:07.5]}
7. c3 {[%clk 0:02:51.4]} 7... Nbd7 {[%clk 0:03:07.5]} 8. Re1 {[%clk 0:02:18.7]}
8... h6 {[%clk 0:03:07.7]} 9. Nbd2 {[%clk 0:02:02.8]} 9... g5 {[%clk 0:03:07.9]}
10. h3 {[%clk 0:01:59.2]} 10... g4 {[%clk 0:03:05.4]} 11. hxg4 {[%clk
0:01:59.5]} 11... Nxg4 {[%clk 0:03:06.4]} 12. Nf1 {[%clk 0:02:00.4]} 12... h5
{[%clk 0:03:06.7]} 13. a4 {[%clk 0:01:42.4]} 13... bxa4 {[%clk 0:03:04.8]} 14.
Rxa4 {[%clk 0:01:41.8]} 14... Ndf6 {[%clk 0:02:55.2]} 15. Bg5 {[%clk 0:01:19.4]}
15... Be7 {[%clk 0:02:52.5]} 16. Ng3 {[%clk 0:01:07.7]} 16... Ng8 {[%clk
0:02:36.2]} 17. Bxe7 {[%clk 0:01:03.4]} 17... Nxe7 {[%clk 0:02:36]} 18. Bxa6
{[%clk 0:00:26.5]} 18... Bxa6 {[%clk 0:02:34]} 19. Rxa6 {[%clk 0:00:28.4]} 19...
Ng6 {[%clk 0:02:31.1]} 20. Qb5+ {[%clk 0:00:26.4]} 20... Kf8 {[%clk 0:02:30.6]}
21. Rxa8 {[%clk 0:00:27]} 21... Qxa8 {[%clk 0:02:30.2]} 22. Nxh5 {[%clk
0:00:27.5]} 22... Qd8 {[%clk 0:02:24]} 23. g3 {[%clk 0:00:10.8]} 23... c6 {[%clk
0:02:16.7]} 24. Qxc6 {[%clk 0:00:03.5]} 24... Rxh5 {[%clk 0:02:16.4]} 25. e5
{[%clk 0:00:04.2]} 25... dxe5 {[%clk 0:01:58.7]} 26. Qe4 {[%clk 0:00:05.2]}
26... Nf6 {[%clk 0:01:47]} 27. Qe2 {[%clk 0:00:05.3]} 27... e4 {[%clk
0:01:44.9]} 28. Nd2 {[%clk 0:00:05.3]} 28... Kg7 {[%clk 0:01:39.8]} 29. Nxe4
{[%clk 0:00:05.3]} 29... Qh8 {[%clk 0:01:40.2]} 30. Qf3 {[%clk 0:00:03.3]} 30...
Nd5 {[%clk 0:01:21.4]} 31. Nd6 {[%clk 0:00:02.4]} 31... Qf8 {[%clk 0:01:11.2]}
32. Qxh5 {[%clk 0:00:03]} 32... Qxd6 {[%clk 0:01:10.3]} 33. Qf3 {[%clk
0:00:03.2]} 33... Qc7 {[%clk 0:00:59.5]} 34. Qd3 {[%clk 0:00:03.4]} 34... Nde7
{[%clk 0:00:58.2]} 35. c4 {[%clk 0:00:04.1]} 35... Nf5 {[%clk 0:00:58.5]} 36. d5
{[%clk 0:00:04.7]} 36... Qc5 {[%clk 0:00:51.8]} 37. dxe6 {[%clk 0:00:04.4]}
37... fxe6 {[%clk 0:00:50]} 38. Rxe6 {[%clk 0:00:04.9]} 38... Kf7 {[%clk
0:00:38.8]} 39. Re2 {[%clk 0:00:03.5]} 39... Nd4 {[%clk 0:00:35.4]} 40. Re4
{[%clk 0:00:03.1]} 40... Nf5 {[%clk 0:00:30.1]} 41. Qd5+ {[%clk 0:00:03.2]}
41... Qxd5 {[%clk 0:00:29.5]} 42. cxd5 {[%clk 0:00:05.1]} 42... Nge7 {[%clk
0:00:28.1]} 43. Re5 {[%clk 0:00:04.4]} 43... Kf6 {[%clk 0:00:27.9]} 44. Re6+
{[%clk 0:00:05.6]} 44... Kf7 {[%clk 0:00:29]} 45. Ra6 {[%clk 0:00:05.9]} 45...
Nxd5 {[%clk 0:00:28.7]} 46. Kg2 {[%clk 0:00:07.4]} 46... Nfe7 {[%clk 0:00:26.5]}
47. f4 {[%clk 0:00:06.9]} 47... Nb4 {[%clk 0:00:26.7]} 48. Rb6 {[%clk
0:00:06.9]} 48... Nbd5 {[%clk 0:00:25.8]} 49. Rd6 {[%clk 0:00:07.6]} 49... Nb4
{[%clk 0:00:25.8]} 50. g4 {[%clk 0:00:08]} 50... Nc2 {[%clk 0:00:21.2]} 51. Kf3
{[%clk 0:00:06]} 51... Ng6 {[%clk 0:00:18.2]} 52. Ke4 {[%clk 0:00:04.4]} 52...
Nb4 {[%clk 0:00:16.5]} 53. f5 {[%clk 0:00:04.5]} 53... Ne7 {[%clk 0:00:16.2]}
54. g5 {[%clk 0:00:05.6]} 54... Nbc6 {[%clk 0:00:16.7]} 55. g6+ {[%clk
0:00:05.5]} 55... Kf8 {[%clk 0:00:17.2]} 56. f6 {[%clk 0:00:02.9]} 56... Nxg6
{[%clk 0:00:17.3]} 57. Rxc6 {[%clk 0:00:04.2]} 57... Kf7 {[%clk 0:00:18.2]} 58.
b4 {[%clk 0:00:04.6]} 58... Nf8 {[%clk 0:00:18.9]} 59. b5 {[%clk 0:00:05.5]}
59... Nd7 {[%clk 0:00:19.9]} 60. Kf5 {[%clk 0:00:06.9]} 60... Nf8 {[%clk
0:00:19.5]} 61. Rc7+ {[%clk 0:00:07.9]} 61... Ke8 {[%clk 0:00:20.2]} 62. b6
{[%clk 0:00:08.9]} 62... Kd8 {[%clk 0:00:21.2]} 63. Rf7 {[%clk 0:00:07.5]} 63...
Nd7 {[%clk 0:00:21.6]} 64. Rxd7+ {[%clk 0:00:08.1]} 64... Kxd7 {[%clk
0:00:23.5]} 65. b7 {[%clk 0:00:10]} 65... Kc7 {[%clk 0:00:24.6]} 66. f7 {[%clk
0:00:11.6]} 66... Kxb7 {[%clk 0:00:26.5]} 67. f8=Q {[%clk 0:00:13.5]} 67... Kc6
{[%clk 0:00:28.1]} 68. Qd8 {[%clk 0:00:14.4]} 68... Kb7 {[%clk 0:00:28.4]} 69.
Qd6 {[%clk 0:00:14.3]} 69... Kc8 {[%clk 0:00:28.8]} 70. Qe7 {[%clk 0:00:15.3]}
70... Kb8 {[%clk 0:00:29.3]} 71. Qd7 {[%clk 0:00:16.9]} 71... Ka8 {[%clk
0:00:31.2]} 72. Ke6 {[%clk 0:00:18.4]} 1-0

[Event "*** Titled Tuesday Blitz"]
[Site "Chess.com"]
[Date "2020.01.07"]
[Round "5"]
[White "TwentyHourADay"]
[Black "Megagigahiper3345"]
[Result "1-0"]
[WhiteElo "2231"]
[BlackElo "2433"]
[TimeControl "180+2"]
[EndTime "14:12:00 PST"]
[Termination "TwentyHourADay won by resignation"]

1. Nf3 {[%clk 0:03:01.9]} 1... d6 {[%clk 0:02:52.3]} 2. d4 {[%clk 0:03:01.4]}
2... f5 {[%clk 0:02:49.9]} 3. Nc3 {[%clk 0:03:01.6]} 3... Nf6 {[%clk 0:02:36.4]}
4. Bg5 {[%clk 0:03:00.8]} 4... d5 {[%clk 0:02:36.6]} 5. e3 {[%clk 0:02:56.4]}
5... g6 {[%clk 0:02:35.1]} 6. Bxf6 {[%clk 0:02:54.8]} 6... exf6 {[%clk
0:02:36.1]} 7. h4 {[%clk 0:02:56.3]} 7... h5 {[%clk 0:02:36.5]} 8. Bd3 {[%clk
0:02:46.9]} 8... Be6 {[%clk 0:02:35.9]} 9. Ne2 {[%clk 0:02:47.1]} 9... Nc6
{[%clk 0:02:36.5]} 10. Nf4 {[%clk 0:02:36.7]} 10... Bf7 {[%clk 0:02:37.5]} 11.
Qe2 {[%clk 0:02:37.3]} 11... Nb4 {[%clk 0:02:22.4]} 12. a3 {[%clk 0:02:05.8]}
12... Nxd3+ {[%clk 0:02:22.8]} 13. cxd3 {[%clk 0:01:50.7]} 13... Bd6 {[%clk
0:02:17.1]} 14. g3 {[%clk 0:01:49.3]} 14... O-O {[%clk 0:02:17.7]} 15. O-O
{[%clk 0:01:47]} 15... c6 {[%clk 0:02:18.2]} 16. b4 {[%clk 0:01:46.6]} 16... Kg7
{[%clk 0:02:18.9]} 17. Qb2 {[%clk 0:01:42.3]} 17... g5 {[%clk 0:02:19.5]} 18.
Ng2 {[%clk 0:01:42.6]} 18... b5 {[%clk 0:02:12.9]} 19. a4 {[%clk 0:01:42.3]}
19... g4 {[%clk 0:02:13.7]} 20. Nd2 {[%clk 0:01:40.8]} 20... a5 {[%clk
0:02:01.8]} 21. axb5 {[%clk 0:01:38.6]} 21... Bxb4 {[%clk 0:01:58.1]} 22. bxc6
{[%clk 0:01:33.2]} 22... Qd6 {[%clk 0:01:59]} 23. Rfc1 {[%clk 0:01:21.6]} 23...
Rfc8 {[%clk 0:02:00.1]} 24. Qc2 {[%clk 0:01:10.3]} 24... Ra6 {[%clk 0:02:00.9]}
25. c7 {[%clk 0:00:57.8]} 25... Ra7 {[%clk 0:01:56.1]} 26. Nb3 {[%clk
0:00:45.3]} 26... Raxc7 {[%clk 0:01:54.6]} 27. Qd1 {[%clk 0:00:41.3]} 27... Rxc1
{[%clk 0:01:55.4]} 28. Rxc1 {[%clk 0:00:42.2]} 28... Rxc1 {[%clk 0:01:56.8]} 29.
Qxc1 {[%clk 0:00:44]} 29... a4 {[%clk 0:01:58.3]} 30. Nc5 {[%clk 0:00:44.5]}
30... a3 {[%clk 0:01:59.1]} 31. Qc2 {[%clk 0:00:40.4]} 31... Qb6 {[%clk
0:01:54.6]} 32. Nb3 {[%clk 0:00:32.3]} 32... Qa6 {[%clk 0:01:46.9]} 33. Nf4
{[%clk 0:00:31.5]} 33... a2 {[%clk 0:01:48]} 34. Qc7 {[%clk 0:00:12.5]} 34...
a1=Q+ {[%clk 0:01:38.3]} 35. Nxa1 {[%clk 0:00:13.7]} 35... Qxa1+ {[%clk
0:01:40.2]} 36. Kg2 {[%clk 0:00:15.1]} 36... Qa6 {[%clk 0:01:41.8]} 37. Nxh5+
{[%clk 0:00:14.5]} 37... Kg8 {[%clk 0:01:37.8]} 38. Qd8+ {[%clk 0:00:12.3]}
38... Bf8 {[%clk 0:01:38.4]} 39. Nxf6+ {[%clk 0:00:12.6]} 39... Kg7 {[%clk
0:01:39.9]} 40. Nd7 {[%clk 0:00:11.6]} 40... Qd6 {[%clk 0:01:37.6]} 41. Qg5+
{[%clk 0:00:08.6]} 41... Qg6 {[%clk 0:01:38.8]} 42. Ne5 {[%clk 0:00:05.5]} 42...
Qxg5 {[%clk 0:01:39.5]} 43. hxg5 {[%clk 0:00:07.4]} 43... Be6 {[%clk 0:01:39.7]}
44. f4 {[%clk 0:00:08.3]} 44... Bc8 {[%clk 0:01:17.9]} 45. Kf2 {[%clk
0:00:05.5]} 45... Ba6 {[%clk 0:01:19.1]} 46. Ke2 {[%clk 0:00:04.7]} 46... Bb4
{[%clk 0:01:19.4]} 47. Nc6 {[%clk 0:00:04.4]} 47... Bd6 {[%clk 0:01:15.5]} 48.
Nd8 {[%clk 0:00:03.5]} 48... Bc8 {[%clk 0:01:13.1]} 49. Kd2 {[%clk 0:00:04.3]}
49... Bd7 {[%clk 0:01:14.2]} 50. Nb7 {[%clk 0:00:05.4]} 50... Bb4+ {[%clk
0:01:12.5]} 51. Ke2 {[%clk 0:00:06.9]} 51... Bb5 {[%clk 0:01:09.9]} 52. Nc5
{[%clk 0:00:07.3]} 52... Kf7 {[%clk 0:01:09.4]} 53. Nb3 {[%clk 0:00:07.8]} 53...
Ba4 {[%clk 0:01:09.1]} 54. Nc5 {[%clk 0:00:08.3]} 54... Be8 {[%clk 0:01:04.5]}
55. Nb3 {[%clk 0:00:08.9]} 55... Ke7 {[%clk 0:01:04.6]} 56. Nc5 {[%clk
0:00:09.6]} 56... Kd6 {[%clk 0:01:02.5]} 57. Nb3 {[%clk 0:00:09.9]} 57... Kc6
{[%clk 0:00:59]} 58. Nd2 {[%clk 0:00:07.4]} 58... Kb5 {[%clk 0:00:57.6]} 59. e4
{[%clk 0:00:08.6]} 59... dxe4 {[%clk 0:00:49.8]} 60. dxe4 {[%clk 0:00:09.7]}
60... Bxd2 {[%clk 0:00:51.3]} 61. Kxd2 {[%clk 0:00:11.1]} 61... fxe4 {[%clk
0:00:52.7]} 62. f5 {[%clk 0:00:11.1]} 62... Kc4 {[%clk 0:00:50.5]} 63. Ke3
{[%clk 0:00:12.3]} 63... Kd5 {[%clk 0:00:50.2]} 64. g6 {[%clk 0:00:11]} 64...
Kd6 {[%clk 0:00:11.9]} 65. Kxe4 {[%clk 0:00:12.3]} 65... Ke7 {[%clk 0:00:13.8]}
66. Ke5 {[%clk 0:00:13.3]} 66... Kf8 {[%clk 0:00:14.6]} 67. Kf6 {[%clk
0:00:14.3]} 67... Bd7 {[%clk 0:00:15.5]} 68. d5 {[%clk 0:00:14.8]} 68... Bb5
{[%clk 0:00:16.1]} 69. d6 {[%clk 0:00:15.2]} 69... Bc6 {[%clk 0:00:12]} 70. Kg5
{[%clk 0:00:15.7]} 70... Bf3 {[%clk 0:00:07.5]} 71. f6 {[%clk 0:00:15.7]} 71...
Bd5 {[%clk 0:00:07.7]} 72. d7 {[%clk 0:00:15.9]} 1-0

[Event "*** Titled Tuesday Blitz"]
[Site "Chess.com"]
[Date "2020.01.07"]
[Round "5"]
[White "WarlordX"]
[Black "enzovsky"]
[Result "0-1"]
[WhiteElo "2459"]
[BlackElo "2260"]
[TimeControl "180+2"]
[EndTime "14:12:14 PST"]
[Termination "enzovsky won on time"]

1. e4 {[%clk 0:03:01.9]} 1... c5 {[%clk 0:03:00.7]} 2. Nc3 {[%clk 0:03:02.6]}
2... e6 {[%clk 0:03:01.2]} 3. g3 {[%clk 0:03:03.6]} 3... d5 {[%clk 0:03:02]} 4.
Bg2 {[%clk 0:03:04.6]} 4... dxe4 {[%clk 0:03:02.9]} 5. Nxe4 {[%clk 0:02:58.8]}
5... Nc6 {[%clk 0:03:03.4]} 6. d3 {[%clk 0:02:59.5]} 6... Be7 {[%clk 0:03:03]}
7. Nf3 {[%clk 0:02:58.9]} 7... Nf6 {[%clk 0:03:03.9]} 8. Nc3 {[%clk 0:03:00.1]}
8... O-O {[%clk 0:03:03]} 9. O-O {[%clk 0:03:01.5]} 9... Bd7 {[%clk 0:02:37.8]}
10. Re1 {[%clk 0:02:59]} 10... Nd4 {[%clk 0:02:27.7]} 11. Ne5 {[%clk 0:02:59.5]}
11... Nc6 {[%clk 0:02:02]} 12. Nxd7 {[%clk 0:02:16.8]} 12... Qxd7 {[%clk
0:02:01.7]} 13. Bf4 {[%clk 0:02:07]} 13... Nd4 {[%clk 0:01:55.7]} 14. a4 {[%clk
0:01:55.3]} 14... Rac8 {[%clk 0:01:54.7]} 15. Nb5 {[%clk 0:01:41.7]} 15... a6
{[%clk 0:01:47.2]} 16. Na3 {[%clk 0:01:38.3]} 16... Qxa4 {[%clk 0:01:11]} 17.
Bxb7 {[%clk 0:01:38]} 17... Rcd8 {[%clk 0:01:07.8]} 18. c3 {[%clk 0:01:11.1]}
18... Qxd1 {[%clk 0:01:03.5]} 19. Raxd1 {[%clk 0:01:13]} 19... Nb5 {[%clk
0:00:55.4]} 20. Nc4 {[%clk 0:01:07.8]} 20... Nd5 {[%clk 0:00:50.9]} 21. Bc1
{[%clk 0:00:53.2]} 21... Nbc7 {[%clk 0:00:50.4]} 22. Na5 {[%clk 0:00:45.9]}
22... Bf6 {[%clk 0:00:42.9]} 23. Nc6 {[%clk 0:00:20.7]} 23... Rd7 {[%clk
0:00:43]} 24. Ne5 {[%clk 0:00:20.2]} 24... Rd6 {[%clk 0:00:39.9]} 25. Nc4 {[%clk
0:00:18.2]} 25... Rd7 {[%clk 0:00:39.6]} 26. d4 {[%clk 0:00:15.2]} 26... cxd4
{[%clk 0:00:37.4]} 27. cxd4 {[%clk 0:00:17.1]} 27... Rb8 {[%clk 0:00:36.3]} 28.
Bc6 {[%clk 0:00:16.3]} 28... Rdd8 {[%clk 0:00:33.6]} 29. Ne5 {[%clk 0:00:17.7]}
29... Rb4 {[%clk 0:00:29.3]} 30. Rd3 {[%clk 0:00:15.6]} 30... Ne7 {[%clk
0:00:21.5]} 31. Bd2 {[%clk 0:00:09.4]} 31... Bxe5 {[%clk 0:00:17]} 32. Bxb4
{[%clk 0:00:10]} 32... Nxc6 {[%clk 0:00:17.9]} 33. Bc3 {[%clk 0:00:09.9]} 33...
Bxd4 {[%clk 0:00:15]} 34. Bxd4 {[%clk 0:00:10.7]} 34... Nxd4 {[%clk 0:00:12.5]}
35. Kg2 {[%clk 0:00:10.4]} 35... Ncb5 {[%clk 0:00:13.5]} 36. Rc1 {[%clk
0:00:10.6]} 36... g6 {[%clk 0:00:12.7]} 37. Ra1 {[%clk 0:00:11.9]} 37... Rd6
{[%clk 0:00:10.8]} 38. Rad1 {[%clk 0:00:11.4]} 38... e5 {[%clk 0:00:10]} 39. b4
{[%clk 0:00:12.4]} 39... Rc6 {[%clk 0:00:10.8]} 40. f4 {[%clk 0:00:13.1]} 40...
f6 {[%clk 0:00:11.6]} 41. fxe5 {[%clk 0:00:14.2]} 41... fxe5 {[%clk 0:00:13.5]}
42. R3d2 {[%clk 0:00:14.5]} 42... Nc3 {[%clk 0:00:13.3]} 43. Re1 {[%clk
0:00:15.4]} 43... Rc4 {[%clk 0:00:04.5]} 44. Rxe5 {[%clk 0:00:15.6]} 44... Rxb4
{[%clk 0:00:06]} 45. Re7 {[%clk 0:00:16.4]} 45... Ncb5 {[%clk 0:00:02.7]} 46.
Rf2 {[%clk 0:00:14.9]} 46... Nf5 {[%clk 0:00:04]} 47. Rb7 {[%clk 0:00:14.6]}
47... Rb3 {[%clk 0:00:04.8]} 48. g4 {[%clk 0:00:11.7]} 48... Ne3+ {[%clk
0:00:04.8]} 49. Kg3 {[%clk 0:00:07.2]} 49... Nd1+ {[%clk 0:00:06.1]} 50. Kg2
{[%clk 0:00:08.5]} 50... Nxf2 {[%clk 0:00:06]} 51. Kxf2 {[%clk 0:00:10.4]} 51...
Rb2+ {[%clk 0:00:07.2]} 52. Kg3 {[%clk 0:00:11.7]} 52... Rb4 {[%clk 0:00:08.8]}
53. Kh4 {[%clk 0:00:12.6]} 53... h6 {[%clk 0:00:08.3]} 54. Kg3 {[%clk
0:00:13.5]} 54... a5 {[%clk 0:00:09.2]} 55. h4 {[%clk 0:00:14.9]} 55... Nd4
{[%clk 0:00:10.3]} 56. Ra7 {[%clk 0:00:15.5]} 56... a4 {[%clk 0:00:11.5]} 57. h5
{[%clk 0:00:15.5]} 57... gxh5 {[%clk 0:00:12.2]} 58. gxh5 {[%clk 0:00:16.9]}
58... Ne2+ {[%clk 0:00:13.3]} 59. Kf3 {[%clk 0:00:18]} 59... Nd4+ {[%clk
0:00:14.3]} 60. Ke3 {[%clk 0:00:18.5]} 60... Nb5 {[%clk 0:00:15.4]} 61. Ra5
{[%clk 0:00:17.2]} 61... a3 {[%clk 0:00:16.5]} 62. Kd3 {[%clk 0:00:18.8]} 62...
Rb2 {[%clk 0:00:14.4]} 63. Ra6 {[%clk 0:00:18.6]} 63... a2 {[%clk 0:00:15.6]}
64. Kc4 {[%clk 0:00:18.2]} 64... Kf7 {[%clk 0:00:14.5]} 65. Kd3 {[%clk
0:00:15.1]} 65... Ke7 {[%clk 0:00:15.5]} 66. Kc4 {[%clk 0:00:16.3]} 66... Kd7
{[%clk 0:00:16.7]} 67. Kd5 {[%clk 0:00:16]} 67... Kc7 {[%clk 0:00:16.7]} 68. Ke5
{[%clk 0:00:17.4]} 68... Kb7 {[%clk 0:00:17.9]} 69. Ra4 {[%clk 0:00:18.3]} 69...
Nc3 {[%clk 0:00:18]} 70. Ra3 {[%clk 0:00:18.3]} 70... Rb1 {[%clk 0:00:17.6]} 71.
Kf5 {[%clk 0:00:17.7]} 71... a1=Q {[%clk 0:00:18.4]} 72. Rxa1 {[%clk 0:00:19.6]}
72... Rxa1 {[%clk 0:00:20.3]} 73. Kg6 {[%clk 0:00:21.5]} 73... Ra6+ {[%clk
0:00:20.7]} 74. Kh7 {[%clk 0:00:22.6]} 74... Ne2 {[%clk 0:00:21.9]} 75. Kg7
{[%clk 0:00:24.5]} 75... Ng1 {[%clk 0:00:23.8]} 76. Kh7 {[%clk 0:00:26.4]} 76...
Nh3 {[%clk 0:00:24.5]} 77. Kg7 {[%clk 0:00:28.3]} 77... Nf2 {[%clk 0:00:26.4]}
78. Kh7 {[%clk 0:00:30.2]} 78... Ne4 {[%clk 0:00:28]} 79. Kg7 {[%clk 0:00:32.1]}
79... Ng3 {[%clk 0:00:29.2]} 80. Kh7 {[%clk 0:00:34]} 80... Nxh5 {[%clk
0:00:30.5]} 0-1